[Event "*** SCC Grand Prix: Titled Tuesday Blitz"]
[Site "Chess.com"]
[Date "2020.08.25"]
[Round "7"]
[White "Larina_Marija"]
[Black "HrvojeZagreb"]
[Result "0-1"]
[WhiteElo "2073"]
[BlackElo "2164"]
[TimeControl "180+1"]
[EndTime "11:21:15 PDT"]
[Termination "HrvojeZagreb won on time"]

1. e4 {[%clk 0:02:10.1]} 1... d6 {[%clk 0:02:58.3]} 2. d4 {[%clk 0:02:08.6]}
2... Nf6 {[%clk 0:02:58.6]} 3. Nc3 {[%clk 0:02:08.1]} 3... Nbd7 {[%clk
0:02:57.9]} 4. g3 {[%clk 0:02:05.1]} 4... e5 {[%clk 0:02:57.9]} 5. Nge2 {[%clk
0:02:02.5]} 5... Be7 {[%clk 0:02:56.6]} 6. Bg2 {[%clk 0:02:02.6]} 6... c6 {[%clk
0:02:57.1]} 7. a4 {[%clk 0:02:01.8]} 7... a5 {[%clk 0:02:56.5]} 8. O-O {[%clk
0:02:01.3]} 8... h5 {[%clk 0:02:56]} 9. h3 {[%clk 0:02:01.2]} 9... h4 {[%clk
0:02:51.9]} 10. g4 {[%clk 0:02:00.4]} 10... Nh7 {[%clk 0:02:51.2]} 11. f4 {[%clk
0:01:59.4]} 11... Qb6 {[%clk 0:02:31.8]} 12. Kh1 {[%clk 0:01:51.8]} 12... g5
{[%clk 0:02:27.9]} 13. f5 {[%clk 0:01:50.7]} 13... f6 {[%clk 0:02:25]} 14. d5
{[%clk 0:01:48.7]} 14... c5 {[%clk 0:02:22.8]} 15. Nb5 {[%clk 0:01:47.9]} 15...
O-O {[%clk 0:02:21.2]} 16. Be3 {[%clk 0:01:44]} 16... Qd8 {[%clk 0:02:16.9]} 17.
c3 {[%clk 0:01:43.8]} 17... b6 {[%clk 0:02:17.1]} 18. Qd2 {[%clk 0:01:41.9]}
18... Ba6 {[%clk 0:02:16.2]} 19. Na3 {[%clk 0:01:31.2]} 19... c4 {[%clk
0:02:10.5]} 20. Nc1 {[%clk 0:01:25.1]} 20... Rc8 {[%clk 0:02:09.4]} 21. Re1
{[%clk 0:01:22.2]} 21... Nc5 {[%clk 0:02:09.3]} 22. Nc2 {[%clk 0:01:05.5]} 22...
Qd7 {[%clk 0:02:03.1]} 23. Bxc5 {[%clk 0:01:05.5]} 23... Rxc5 {[%clk 0:02:02.3]}
24. Bf1 {[%clk 0:01:05.4]} 24... Rb8 {[%clk 0:01:52.3]} 25. Ne3 {[%clk
0:01:05.2]} 25... Bd8 {[%clk 0:01:47.3]} 26. b4 {[%clk 0:01:04.7]} 26... axb4
{[%clk 0:01:43.7]} 27. cxb4 {[%clk 0:01:04.7]} 27... c3 {[%clk 0:01:34.4]} 28.
Qc2 {[%clk 0:01:04.1]} 28... Bxf1 {[%clk 0:01:33]} 29. Rxf1 {[%clk 0:01:03.5]}
29... Rcc8 {[%clk 0:01:20.8]} 30. b5 {[%clk 0:01:03.7]} 30... Rc7 {[%clk
0:01:16.8]} 31. Na2 {[%clk 0:01:03.1]} 31... Rbc8 {[%clk 0:01:16.5]} 32. Nb4
{[%clk 0:01:02.8]} 32... Rc5 {[%clk 0:01:13]} 33. Nc6 {[%clk 0:01:02.5]} 33...
Nf8 {[%clk 0:01:10.6]} 34. Rfc1 {[%clk 0:00:58.1]} 34... Qb7 {[%clk 0:00:57.3]}
35. Ra3 {[%clk 0:00:56.6]} 35... Ra8 {[%clk 0:00:52.5]} 36. Nd1 {[%clk
0:00:53.3]} 36... Nd7 {[%clk 0:00:42.5]} 37. Nxc3 {[%clk 0:00:53.2]} 37... Rc4
{[%clk 0:00:40.8]} 38. Qb2 {[%clk 0:00:47]} 38... Nc5 {[%clk 0:00:38.7]} 39. Re1
{[%clk 0:00:40.1]} 39... Bc7 {[%clk 0:00:34.2]} 40. Raa1 {[%clk 0:00:38.6]}
40... Nxa4 {[%clk 0:00:30.8]} 41. Nxa4 {[%clk 0:00:38.2]} 41... Rcxa4 {[%clk
0:00:31.3]} 42. Rxa4 {[%clk 0:00:36.1]} 42... Rxa4 {[%clk 0:00:32.2]} 43. Ne7+
{[%clk 0:00:34.2]} 43... Kf7 {[%clk 0:00:31.8]} 44. Nc6 {[%clk 0:00:29.4]} 44...
Qa8 {[%clk 0:00:31.3]} 45. Rc1 {[%clk 0:00:28.4]} 45... Rxe4 {[%clk 0:00:28.1]}
46. Ra1 {[%clk 0:00:22.7]} 46... Ra4 {[%clk 0:00:27.6]} 47. Rc1 {[%clk
0:00:21.4]} 47... Ra2 {[%clk 0:00:23.6]} 48. Nxe5+ {[%clk 0:00:20.2]} 48... Ke8
{[%clk 0:00:13.9]} 49. Qc3 {[%clk 0:00:18.8]} 49... Qxd5+ {[%clk 0:00:12.2]} 50.
Nf3 {[%clk 0:00:16.6]} 50... Bd8 {[%clk 0:00:05.1]} 51. Qc6+ {[%clk 0:00:14.5]}
51... Qxc6 {[%clk 0:00:05.3]} 52. Rxc6 {[%clk 0:00:12.9]} 52... d5 {[%clk
0:00:05.6]} 53. Nd4 {[%clk 0:00:12.7]} 53... Be7 {[%clk 0:00:05.9]} 54. Ne6
{[%clk 0:00:12.2]} 54... Bc5 {[%clk 0:00:06]} 55. Nxc5 {[%clk 0:00:09.9]} 55...
bxc5 {[%clk 0:00:06.9]} 56. Rxc5 {[%clk 0:00:10]} 56... Rd2 {[%clk 0:00:06.6]}
57. b6 {[%clk 0:00:09.6]} 57... Rb2 {[%clk 0:00:05.4]} 58. Rc6 {[%clk
0:00:09.8]} 58... Ke7 {[%clk 0:00:05.3]} 59. Rc7+ {[%clk 0:00:08.9]} 59... Kd6
{[%clk 0:00:05.3]} 60. Rf7 {[%clk 0:00:08.6]} 60... Ke5 {[%clk 0:00:05.2]} 61.
b7 {[%clk 0:00:07.4]} 61... Kf4 {[%clk 0:00:05]} 62. Rd7 {[%clk 0:00:06.1]}
62... Kg3 {[%clk 0:00:04.5]} 63. b8=Q+ {[%clk 0:00:03.1]} 63... Rxb8 {[%clk
0:00:04.2]} 64. Rb7 {[%clk 0:00:02]} 64... Rxb7 {[%clk 0:00:04.3]} 0-1

[Event "*** SCC Grand Prix: Titled Tuesday Blitz"]
[Site "Chess.com"]
[Date "2020.08.25"]
[Round "7"]
[White "Fh2411"]
[Black "TomasKapitanchuk"]
[Result "1/2-1/2"]
[WhiteElo "2535"]
[BlackElo "2399"]
[TimeControl "180+1"]
[EndTime "11:21:17 PDT"]
[Termination "Game drawn by repetition"]

1. d4 {[%clk 0:03:00.9]} 1... Nf6 {[%clk 0:02:59.1]} 2. Nf3 {[%clk 0:03:01.2]}
2... e6 {[%clk 0:02:59.2]} 3. Bf4 {[%clk 0:03:01]} 3... d5 {[%clk 0:02:58.6]} 4.
e3 {[%clk 0:03:01.5]} 4... Bd6 {[%clk 0:02:59.2]} 5. Bg3 {[%clk 0:03:01.7]} 5...
O-O {[%clk 0:02:59.8]} 6. Nbd2 {[%clk 0:03:02.2]} 6... c5 {[%clk 0:03:00.4]} 7.
c3 {[%clk 0:03:02.3]} 7... b6 {[%clk 0:03:01]} 8. Ne5 {[%clk 0:03:00.9]} 8...
Bb7 {[%clk 0:03:01.3]} 9. f4 {[%clk 0:02:58.6]} 9... Nc6 {[%clk 0:03:01.5]} 10.
Bd3 {[%clk 0:02:56]} 10... Ne7 {[%clk 0:03:02]} 11. O-O {[%clk 0:02:51.8]} 11...
Nf5 {[%clk 0:03:02.2]} 12. Qf3 {[%clk 0:02:48.9]} 12... Be7 {[%clk 0:03:01.8]}
13. Bxf5 {[%clk 0:02:41.8]} 13... exf5 {[%clk 0:03:01.3]} 14. Bh4 {[%clk
0:02:42.3]} 14... Ne4 {[%clk 0:03:00]} 15. Bxe7 {[%clk 0:02:31.8]} 15... Qxe7
{[%clk 0:02:54.9]} 16. Nxe4 {[%clk 0:02:27.2]} 16... fxe4 {[%clk 0:02:47.8]} 17.
Qh3 {[%clk 0:02:26.1]} 17... f6 {[%clk 0:02:47.2]} 18. Ng4 {[%clk 0:02:25.4]}
18... Ba6 {[%clk 0:02:44.4]} 19. Rfd1 {[%clk 0:02:24.7]} 19... Rfd8 {[%clk
0:02:41.3]} 20. Nf2 {[%clk 0:02:20.1]} 20... Rac8 {[%clk 0:02:35.1]} 21. Rd2
{[%clk 0:02:20]} 21... Bc4 {[%clk 0:02:28.3]} 22. g4 {[%clk 0:02:10.1]} 22... g5
{[%clk 0:02:21.4]} 23. Qg3 {[%clk 0:02:04.4]} 23... Kh8 {[%clk 0:02:14.2]} 24.
h4 {[%clk 0:01:41.1]} 24... Rg8 {[%clk 0:02:10.3]} 25. hxg5 {[%clk 0:01:40.3]}
25... fxg5 {[%clk 0:02:10.2]} 26. f5 {[%clk 0:01:40.8]} 26... Rge8 {[%clk
0:02:06.3]} 27. Kg2 {[%clk 0:01:39.8]} 27... Kg7 {[%clk 0:02:05.4]} 28. Qh2
{[%clk 0:01:37.3]} 28... h6 {[%clk 0:02:04.8]} 29. Rh1 {[%clk 0:01:34.5]} 29...
Rc6 {[%clk 0:02:04.2]} 30. b3 {[%clk 0:01:29.7]} 30... Ba6 {[%clk 0:02:03]} 31.
dxc5 {[%clk 0:01:20.2]} 31... Qxc5 {[%clk 0:02:03.3]} 32. Nd1 {[%clk 0:01:11.4]}
32... Bd3 {[%clk 0:02:00.4]} 33. Kf2 {[%clk 0:01:09.2]} 33... b5 {[%clk
0:01:57]} 34. b4 {[%clk 0:01:07]} 34... Qe7 {[%clk 0:01:54]} 35. Qg3 {[%clk
0:01:05.7]} 35... Rec8 {[%clk 0:01:52.6]} 36. Rh5 {[%clk 0:01:04.3]} 36... a5
{[%clk 0:01:48.7]} 37. a3 {[%clk 0:01:02.1]} 37... axb4 {[%clk 0:01:48.7]} 38.
axb4 {[%clk 0:01:03]} 38... Ra8 {[%clk 0:01:45.1]} 39. Qh2 {[%clk 0:01:02.9]}
39... Ra1 {[%clk 0:01:41.6]} 40. Qb8 {[%clk 0:00:56.2]} 40... d4 {[%clk
0:01:27.1]} 41. exd4 {[%clk 0:00:40.4]} 41... Rxc3 {[%clk 0:01:11.9]} 42. Qe5+
{[%clk 0:00:29.2]} 42... Qxe5 {[%clk 0:01:12.3]} 43. dxe5 {[%clk 0:00:30.1]}
43... Rcc1 {[%clk 0:01:06]} 44. Ne3 {[%clk 0:00:30.3]} 44... Rh1 {[%clk
0:01:00.2]} 45. Rxh1 {[%clk 0:00:28.8]} 45... Rxh1 {[%clk 0:01:01.1]} 46. Kg2
{[%clk 0:00:24.2]} 46... Re1 {[%clk 0:01:00]} 47. Nd5 {[%clk 0:00:24.1]} 47...
Bc4 {[%clk 0:00:45.2]} 48. f6+ {[%clk 0:00:21.9]} 48... Kf7 {[%clk 0:00:43.7]}
49. Nc7 {[%clk 0:00:18]} 49... Bd3 {[%clk 0:00:40.7]} 50. Ra2 {[%clk 0:00:17.1]}
50... e3 {[%clk 0:00:30.2]} 51. Kf3 {[%clk 0:00:16.1]} 51... e2 {[%clk
0:00:28.8]} 52. Ke3 {[%clk 0:00:10.8]} 52... Rd1 {[%clk 0:00:27.2]} 53. Rxe2
{[%clk 0:00:10.3]} 53... Bxe2 {[%clk 0:00:28.1]} 54. Kxe2 {[%clk 0:00:11.2]}
54... Rc1 {[%clk 0:00:28]} 55. Nxb5 {[%clk 0:00:10.5]} 55... Rb1 {[%clk
0:00:24]} 56. Ke3 {[%clk 0:00:07]} 56... Rxb4 {[%clk 0:00:24.1]} 57. Nd4 {[%clk
0:00:07.9]} 57... Ra4 {[%clk 0:00:21.7]} 58. Ke4 {[%clk 0:00:08.1]} 58... Ra1
{[%clk 0:00:19.9]} 59. Nf5 {[%clk 0:00:04.5]} 59... Ra4+ {[%clk 0:00:18.5]} 60.
Kd5 {[%clk 0:00:04.3]} 60... Ra5+ {[%clk 0:00:18.8]} 61. Ke4 {[%clk 0:00:04.8]}
61... Ra4+ {[%clk 0:00:18.9]} 62. Kd5 {[%clk 0:00:04.2]} 62... Ra5+ {[%clk
0:00:19.1]} 63. Kd6 {[%clk 0:00:04.3]} 63... Ra6+ {[%clk 0:00:18.9]} 64. Kd7
{[%clk 0:00:04.5]} 64... Ra7+ {[%clk 0:00:19.3]} 65. Kd6 {[%clk 0:00:04.9]}
65... Ra6+ {[%clk 0:00:19.4]} 66. Kd7 {[%clk 0:00:05.5]} 66... Ra7+ {[%clk
0:00:17.9]} 67. Kd6 {[%clk 0:00:05.5]} 67... Ra4 {[%clk 0:00:15.3]} 68. Nxh6+
{[%clk 0:00:05.2]} 68... Kg6 {[%clk 0:00:15.1]} 69. Nf5 {[%clk 0:00:05.5]} 69...
Kf7 {[%clk 0:00:14.4]} 70. Nh6+ {[%clk 0:00:05.5]} 70... Kg6 {[%clk 0:00:14.4]}
71. Nf5 {[%clk 0:00:05.8]} 71... Kf7 {[%clk 0:00:14.5]} 72. Nh6+ {[%clk
0:00:05.2]} 1/2-1/2

[Event "*** SCC Grand Prix: Titled Tuesday Blitz"]
[Site "Chess.com"]
[Date "2020.08.25"]
[Round "7"]
[White "AlexSuv"]
[Black "Misticpikachu"]
[Result "1-0"]
[WhiteElo "2487"]
[BlackElo "2323"]
[TimeControl "180+1"]
[EndTime "11:21:27 PDT"]
[Termination "AlexSuv won by resignation"]

1. d4 {[%clk 0:03:00.9]} 1... e6 {[%clk 0:03:00]} 2. c4 {[%clk 0:03:00.4]} 2...
Nf6 {[%clk 0:03:00.5]} 3. Nc3 {[%clk 0:02:57.1]} 3... d5 {[%clk 0:02:58.9]} 4.
cxd5 {[%clk 0:02:55.9]} 4... exd5 {[%clk 0:02:59.7]} 5. Bg5 {[%clk 0:02:55.9]}
5... c6 {[%clk 0:02:59]} 6. e3 {[%clk 0:02:56.3]} 6... Be7 {[%clk 0:02:58.7]} 7.
Bd3 {[%clk 0:02:55.6]} 7... O-O {[%clk 0:02:57.3]} 8. Qc2 {[%clk 0:02:55.5]}
8... Nbd7 {[%clk 0:02:53.8]} 9. Nf3 {[%clk 0:02:55.6]} 9... Re8 {[%clk
0:02:50.3]} 10. O-O {[%clk 0:02:54.8]} 10... Ne4 {[%clk 0:02:49.3]} 11. Bf4
{[%clk 0:02:53.8]} 11... Ndf6 {[%clk 0:02:46.1]} 12. Bxe4 {[%clk 0:02:34.4]}
12... Nxe4 {[%clk 0:02:39.3]} 13. Nxe4 {[%clk 0:02:34.3]} 13... dxe4 {[%clk
0:02:40.2]} 14. Qxe4 {[%clk 0:02:35.1]} 14... Bd6 {[%clk 0:02:40.7]} 15. Qc2
{[%clk 0:02:29.7]} 15... Bxf4 {[%clk 0:02:39.3]} 16. exf4 {[%clk 0:02:29.5]}
16... Qf6 {[%clk 0:02:22.9]} 17. Qd2 {[%clk 0:02:27.2]} 17... Re4 {[%clk
0:02:12.2]} 18. Rfe1 {[%clk 0:02:26.2]} 18... Bf5 {[%clk 0:02:10.5]} 19. Rxe4
{[%clk 0:02:17.7]} 19... Bxe4 {[%clk 0:02:11.4]} 20. Ne5 {[%clk 0:02:18.3]}
20... Rd8 {[%clk 0:02:10.1]} 21. Qe3 {[%clk 0:02:16.3]} 21... Bf5 {[%clk
0:02:03.1]} 22. Rd1 {[%clk 0:02:10.6]} 22... Qd6 {[%clk 0:01:55.9]} 23. Qb3
{[%clk 0:02:03.1]} 23... Qc7 {[%clk 0:01:28.3]} 24. h3 {[%clk 0:02:02.5]} 24...
Be6 {[%clk 0:01:28.6]} 25. Qa3 {[%clk 0:02:01.7]} 25... a6 {[%clk 0:01:18.2]}
26. Qa4 {[%clk 0:01:19]} 26... Qb6 {[%clk 0:00:51.3]} 27. b3 {[%clk 0:01:12.5]}
27... c5 {[%clk 0:00:46.9]} 28. d5 {[%clk 0:01:12.3]} 28... Bf5 {[%clk
0:00:37.8]} 29. d6 {[%clk 0:01:07]} 29... h6 {[%clk 0:00:36]} 30. Qc4 {[%clk
0:01:01.5]} 30... Be6 {[%clk 0:00:28.1]} 31. Qd3 {[%clk 0:01:02.1]} 31... f6
{[%clk 0:00:19.3]} 32. f5 {[%clk 0:00:56.9]} 32... Bf7 {[%clk 0:00:12.9]} 33.
Nxf7 {[%clk 0:00:44.4]} 33... Kxf7 {[%clk 0:00:13.8]} 34. Qd5+ {[%clk
0:00:44.9]} 34... Kf8 {[%clk 0:00:13.5]} 35. d7 {[%clk 0:00:43.7]} 35... Qc7
{[%clk 0:00:10.5]} 36. Qe6 {[%clk 0:00:42.7]} 36... b5 {[%clk 0:00:07]} 37. Qxa6
{[%clk 0:00:30.3]} 37... Rxd7 {[%clk 0:00:05.7]} 38. Re1 {[%clk 0:00:30.9]}
38... Re7 {[%clk 0:00:04]} 39. Rxe7 {[%clk 0:00:20.9]} 39... Qxe7 {[%clk
0:00:03.7]} 40. Qxb5 {[%clk 0:00:21.6]} 40... Qe1+ {[%clk 0:00:03.7]} 41. Kh2
{[%clk 0:00:22]} 41... Qe5+ {[%clk 0:00:03.2]} 42. g3 {[%clk 0:00:21.8]} 42...
Qe1 {[%clk 0:00:03.3]} 43. Qxc5+ {[%clk 0:00:21.5]} 43... Kg8 {[%clk 0:00:03.8]}
44. a4 {[%clk 0:00:21.1]} 44... Qd1 {[%clk 0:00:03.3]} 45. b4 {[%clk 0:00:20.7]}
45... Qxa4 {[%clk 0:00:03.4]} 46. b5 {[%clk 0:00:21.2]} 46... Qa5 {[%clk
0:00:03]} 47. h4 {[%clk 0:00:20.3]} 47... Kh7 {[%clk 0:00:02.8]} 48. Kg2 {[%clk
0:00:19.6]} 48... h5 {[%clk 0:00:03.2]} 49. Qc6 {[%clk 0:00:20]} 49... Qd2
{[%clk 0:00:02.7]} 50. b6 {[%clk 0:00:20.2]} 50... Qd8 {[%clk 0:00:03.5]} 51.
Qc7 {[%clk 0:00:20.3]} 51... Qd5+ {[%clk 0:00:03.3]} 52. Kh2 {[%clk 0:00:20.4]}
52... Qxf5 {[%clk 0:00:03.5]} 53. Kg1 {[%clk 0:00:19.3]} 53... Qb1+ {[%clk
0:00:03.2]} 54. Kh2 {[%clk 0:00:18.7]} 54... Qf5 {[%clk 0:00:03.8]} 55. Kg2
{[%clk 0:00:16.6]} 55... Qe4+ {[%clk 0:00:03.8]} 56. Kf1 {[%clk 0:00:17.1]}
56... Qb1+ {[%clk 0:00:03.9]} 57. Ke2 {[%clk 0:00:17.5]} 57... Qe4+ {[%clk
0:00:04.1]} 58. Kd2 {[%clk 0:00:17.6]} 58... Qd5+ {[%clk 0:00:03.7]} 59. Kc2
{[%clk 0:00:17.6]} 59... Qe4+ {[%clk 0:00:04.1]} 60. Kb3 {[%clk 0:00:17.8]}
60... Qf3+ {[%clk 0:00:03.9]} 61. Ka4 {[%clk 0:00:18.3]} 61... Qe4+ {[%clk
0:00:04.1]} 62. Ka5 {[%clk 0:00:18.6]} 62... Qe1+ {[%clk 0:00:04.5]} 63. Ka6
{[%clk 0:00:18.4]} 63... Qa1+ {[%clk 0:00:05.1]} 64. Kb7 {[%clk 0:00:18.7]}
64... Qh1+ {[%clk 0:00:05.6]} 65. Kb8 {[%clk 0:00:18.1]} 65... Qd5 {[%clk
0:00:04]} 66. b7 {[%clk 0:00:18.2]} 66... Kg6 {[%clk 0:00:03.7]} 67. Kc8 {[%clk
0:00:18.5]} 67... Qg8+ {[%clk 0:00:03.3]} 68. Qd8 {[%clk 0:00:18.6]} 68... Qe6+
{[%clk 0:00:03.4]} 69. Kc7 {[%clk 0:00:19.1]} 69... Qc4+ {[%clk 0:00:03.3]} 70.
Kd7 {[%clk 0:00:18.9]} 70... Qd5+ {[%clk 0:00:03.3]} 71. Kc8 {[%clk 0:00:18.9]}
71... Qc6+ {[%clk 0:00:03]} 72. Kb8 {[%clk 0:00:19]} 72... Qb6 {[%clk
0:00:02.6]} 73. Qxb6 {[%clk 0:00:18.9]} 1-0

[Event "*** SCC Grand Prix: Titled Tuesday Blitz"]
[Site "Chess.com"]
[Date "2020.08.25"]
[Round "7"]
[White "Sacbutt"]
[Black "ShahMatKanal"]
[Result "1-0"]
[WhiteElo "2201"]
[BlackElo "2444"]
[TimeControl "180+1"]
[EndTime "11:21:27 PDT"]
[Termination "Sacbutt won by checkmate"]

1. e4 {[%clk 0:03:00.9]} 1... c5 {[%clk 0:03:00.4]} 2. Nf3 {[%clk 0:02:57.9]}
2... Nc6 {[%clk 0:03:00.9]} 3. d4 {[%clk 0:02:57.3]} 3... cxd4 {[%clk
0:03:01.8]} 4. c3 {[%clk 0:02:57.6]} 4... d5 {[%clk 0:02:54.5]} 5. exd5 {[%clk
0:02:56.2]} 5... Qxd5 {[%clk 0:02:55.4]} 6. cxd4 {[%clk 0:02:56.6]} 6... e6
{[%clk 0:02:47.4]} 7. Nc3 {[%clk 0:02:55]} 7... Bb4 {[%clk 0:02:46.8]} 8. Be2
{[%clk 0:02:50.3]} 8... Nf6 {[%clk 0:02:45.3]} 9. O-O {[%clk 0:02:50.1]} 9...
Qd8 {[%clk 0:02:43.6]} 10. Bg5 {[%clk 0:02:48.7]} 10... Be7 {[%clk 0:02:40.9]}
11. Qd2 {[%clk 0:02:34]} 11... O-O {[%clk 0:02:39.7]} 12. Rfd1 {[%clk
0:02:32.2]} 12... Nb4 {[%clk 0:02:38.2]} 13. Ne5 {[%clk 0:02:28.5]} 13... Nbd5
{[%clk 0:02:34.4]} 14. h3 {[%clk 0:02:23.2]} 14... h6 {[%clk 0:02:29.1]} 15.
Nxd5 {[%clk 0:02:18.2]} 15... exd5 {[%clk 0:02:08.3]} 16. Bh4 {[%clk 0:02:05.7]}
16... Be6 {[%clk 0:01:52]} 17. Rac1 {[%clk 0:01:51.9]} 17... Rc8 {[%clk
0:01:36.7]} 18. Bd3 {[%clk 0:01:44.8]} 18... Qb6 {[%clk 0:01:09]} 19. Bxf6
{[%clk 0:01:34.3]} 19... Bxf6 {[%clk 0:01:08.3]} 20. b3 {[%clk 0:01:33.5]} 20...
Kh8 {[%clk 0:00:59]} 21. Qe3 {[%clk 0:01:25.6]} 21... Kg8 {[%clk 0:00:45.2]} 22.
Bb1 {[%clk 0:01:23.2]} 22... Bxe5 {[%clk 0:00:38.7]} 23. Qxe5 {[%clk 0:01:20.7]}
23... Qd8 {[%clk 0:00:27.2]} 24. Qe3 {[%clk 0:01:08.2]} 24... Qg5 {[%clk
0:00:23.4]} 25. Qxg5 {[%clk 0:00:59.9]} 25... hxg5 {[%clk 0:00:24.3]} 26. Rc5
{[%clk 0:00:55.5]} 26... b6 {[%clk 0:00:22.4]} 27. Rcc1 {[%clk 0:00:54]} 27...
f6 {[%clk 0:00:21.6]} 28. Bd3 {[%clk 0:00:50.4]} 28... Kf7 {[%clk 0:00:20.6]}
29. Ba6 {[%clk 0:00:49.7]} 29... Rxc1 {[%clk 0:00:20.6]} 30. Rxc1 {[%clk
0:00:50.6]} 30... Re8 {[%clk 0:00:20.3]} 31. Kf1 {[%clk 0:00:48.8]} 31... Re7
{[%clk 0:00:19.5]} 32. f3 {[%clk 0:00:31.9]} 32... Ke8 {[%clk 0:00:18.3]} 33.
Kf2 {[%clk 0:00:32.1]} 33... Kd8 {[%clk 0:00:18]} 34. Bb5 {[%clk 0:00:30.5]}
34... Rc7 {[%clk 0:00:16]} 35. Rxc7 {[%clk 0:00:29.8]} 35... Kxc7 {[%clk
0:00:16.9]} 36. Ke3 {[%clk 0:00:29.6]} 36... Kd6 {[%clk 0:00:17]} 37. a3 {[%clk
0:00:28]} 37... Bf5 {[%clk 0:00:15.4]} 38. Bd3 {[%clk 0:00:22.1]} 38... Bd7
{[%clk 0:00:14.7]} 39. f4 {[%clk 0:00:18.4]} 39... gxf4+ {[%clk 0:00:13.9]} 40.
Kxf4 {[%clk 0:00:19.3]} 40... g5+ {[%clk 0:00:14.4]} 41. Kg3 {[%clk 0:00:16.5]}
41... a5 {[%clk 0:00:15.3]} 42. h4 {[%clk 0:00:15.4]} 42... gxh4+ {[%clk
0:00:16]} 43. Kxh4 {[%clk 0:00:16.2]} 43... Ke7 {[%clk 0:00:11.1]} 44. Kg3
{[%clk 0:00:15.5]} 44... Kd6 {[%clk 0:00:09.6]} 45. Kf4 {[%clk 0:00:16]} 45...
Bc8 {[%clk 0:00:09.1]} 46. g4 {[%clk 0:00:16.5]} 46... Bd7 {[%clk 0:00:08.4]}
47. Bf5 {[%clk 0:00:16.5]} 47... Be8 {[%clk 0:00:07.9]} 48. Bc8 {[%clk
0:00:15.8]} 48... Bg6 {[%clk 0:00:08]} 49. b4 {[%clk 0:00:16.1]} 49... axb4
{[%clk 0:00:07.1]} 50. axb4 {[%clk 0:00:17]} 50... Bd3 {[%clk 0:00:06.8]} 51.
Bf5 {[%clk 0:00:16.5]} 51... Bb5 {[%clk 0:00:06.8]} 52. Bg6 {[%clk 0:00:16.8]}
52... Bd7 {[%clk 0:00:06.8]} 53. Bf7 {[%clk 0:00:17.1]} 53... Kc6 {[%clk
0:00:05.5]} 54. Bg8 {[%clk 0:00:15.9]} 54... Kd6 {[%clk 0:00:04]} 55. Bf7 {[%clk
0:00:16]} 55... Bc8 {[%clk 0:00:04.3]} 56. Be8 {[%clk 0:00:15.8]} 56... Be6
{[%clk 0:00:03.9]} 57. Bb5 {[%clk 0:00:15.5]} 57... Kc7 {[%clk 0:00:03.9]} 58.
Bd3 {[%clk 0:00:15.5]} 58... Kc6 {[%clk 0:00:04.2]} 59. Bf5 {[%clk 0:00:15.7]}
59... Bf7 {[%clk 0:00:04.6]} 60. Bc8 {[%clk 0:00:15.8]} 60... Kb5 {[%clk
0:00:04.5]} 61. Kf5 {[%clk 0:00:15.4]} 61... Kxb4 {[%clk 0:00:04.9]} 62. Ba6
{[%clk 0:00:15.2]} 62... Kc3 {[%clk 0:00:04.5]} 63. Kxf6 {[%clk 0:00:15.6]}
63... Be8 {[%clk 0:00:04.9]} 64. Ke5 {[%clk 0:00:15.6]} 64... Bd7 {[%clk
0:00:03.6]} 65. g5 {[%clk 0:00:15.7]} 65... b5 {[%clk 0:00:03.6]} 66. g6 {[%clk
0:00:15.1]} 66... Be8 {[%clk 0:00:03.9]} 67. g7 {[%clk 0:00:14.2]} 67... Bf7
{[%clk 0:00:04]} 68. Bxb5 {[%clk 0:00:14.7]} 68... Kb4 {[%clk 0:00:04.2]} 69.
Bc6 {[%clk 0:00:15]} 69... Kc4 {[%clk 0:00:04.2]} 70. Bd7 {[%clk 0:00:14.7]}
70... Kd3 {[%clk 0:00:04.1]} 71. Be6 {[%clk 0:00:14.6]} 71... Bxe6 {[%clk
0:00:03.8]} 72. Kxe6 {[%clk 0:00:14.7]} 72... Kxd4 {[%clk 0:00:04.7]} 73. g8=Q
{[%clk 0:00:15.1]} 73... Kc4 {[%clk 0:00:04.6]} 74. Qg1 {[%clk 0:00:15.4]} 74...
d4 {[%clk 0:00:05.5]} 75. Qd1 {[%clk 0:00:15.7]} 75... d3 {[%clk 0:00:05.9]} 76.
Kf5 {[%clk 0:00:16.1]} 76... Kc3 {[%clk 0:00:06.8]} 77. Kf4 {[%clk 0:00:16.9]}
77... d2 {[%clk 0:00:07.3]} 78. Ke3 {[%clk 0:00:16.9]} 78... Kb2 {[%clk
0:00:07.7]} 79. Qxd2+ {[%clk 0:00:16.8]} 79... Ka1 {[%clk 0:00:08.6]} 80. Kd3
{[%clk 0:00:16.8]} 80... Kb1 {[%clk 0:00:09.5]} 81. Kc3 {[%clk 0:00:17.4]} 81...
Ka1 {[%clk 0:00:10.4]} 82. Qb2# {[%clk 0:00:17.6]} 1-0